bitfinex-derivatives/quotes_ETHF0:USTF0_20240904
["timestamp","ask_amount","ask_price","bid_price","bid_amount"]
[1725485600056,0.00610923,2456.0,2455.9,1.5772]
[1725485601360,2.67377737,2456.0,2455.9,1.5772]
[1725485601566,2.67377737,2456.0,2455.9,2.5952]
[1725485601858,2.14016959,2456.0,2455.9,2.5952]
[1725485602257,0.00610923,2456.0,2455.9,2.5952]
[1725485606154,2.67377737,2456.0,2455.9,2.5952]
[1725485608260,2.67377737,2456.0,2455.9,2.9777]
[1725485616277,2.67377737,2456.0,2455.9,4.04644226]
[1725485617177,2.67377737,2456.0,2455.9,2.9777]
[1725485617675,2.67377737,2456.0,2455.9,4.04644226]
[1725485619370,2.67377737,2456.0,2455.9,7.25424226]
[1725485621473,2.67377737,2456.0,2455.9,4.04644226]
[1725485621671,2.67377737,2456.0,2455.9,7.25424226]
[1725485623466,2.67377737,2456.0,2455.9,4.68374226]
[1725485623667,3.44197737,2456.0,2455.9,5.85374226]
[1725485623870,3.44197737,2456.0,2455.9,4.785]
[1725485624968,0.77430923,2456.0,2455.8,1.06874226]
[1725485625170,3.98210923,2456.0,2455.7,1.06874226]
[1725485625379,2.67073539,2455.8,2455.7,0.40723]
[1725485625678,2.67073539,2455.8,2455.7,1.17]
[1725485625875,7.18035158,2456.0,2455.7,1.17]
[1725485625876,7.18035158,2456.0,2455.7,1.57723]
[1725485627577,7.18035158,2456.0,2455.9,1.17]
[1725485630277,3.98210923,2456.0,2455.9,1.17]
[1725485632083,3.98210923,2456.0,2455.9,1.5772]
[1725485632978,3.98210923,2456.0,2455.9,1.17]
[1725485633185,3.98210923,2456.0,2455.9,1.5772]
[1725485633877,8.05410923,2456.0,2455.8,0.4072]
[1725485634081,7.18035158,2456.0,2455.8,1.5772]
[1725485634276,4.072,2455.9,2455.8,1.5772]
[1725485637977,4.072,2455.9,2455.8,0.40721]
[1725485640386,4.4792,2455.9,2455.7,0.40722]
[1725485640590,0.77801,2455.8,2455.7,1.17]
[1725485640785,0.3708,2455.8,2455.7,1.57723]
[1725485640983,7.10826709,2455.8,2455.7,1.57723]
[1725485641188,4.4428,2455.8,2455.7,1.57723]
[1725485641787,0.3708,2455.8,2455.7,1.57723]
[1725485642784,3.03579955,2455.8,2455.7,1.57723]
[1725485644196,0.3708,2455.8,2455.7,2.32713]
[1725485646595,2.13130761,2455.8,2455.7,2.32713]
[1725485646989,2.66499955,2455.9,2455.8,0.40721]
[1725485647189,2.66499955,2455.9,2455.8,1.57721]
[1725485647396,6.73699955,2455.9,2455.8,1.57721]
[1725485652489,2.66499955,2455.9,2455.8,1.57721]
[1725485653692,0.00610923,2456.0,2455.9,2.4432]
[1725485653891,2.1319805,2456.2,2456.1,0.40716]
[1725485654194,4.16214235,2456.7,2456.2,0.40715]
[1725485654395,3.97214235,2456.7,2456.4,0.40711]
[1725485654594,0.7739,2456.7,2456.4,0.40711]
[1725485656696,0.7739,2456.7,2456.5,0.4071]
[1725485658405,0.7739,2456.7,2456.6,0.40708]
[1725485664801,0.7739,2456.7,2456.5,0.4071]
[1725485665000,0.40708,2456.6,2456.5,0.4071]
[1725485665198,1.18098,2456.7,2456.5,0.4071]
[1725485665402,1.18098,2456.7,2456.5,0.40708]
[1725485665610,1.18098,2456.7,2456.6,0.40708]
[1725485666000,0.7739,2456.7,2456.6,0.40708]
[1725485676212,1.18097,2456.7,2456.6,0.40708]
[1725485678302,0.7739,2456.7,2456.6,0.40708]
[1725485679914,1.18097,2456.7,2456.6,0.40708]
[1725485680516,0.7739,2456.7,2456.6,0.40708]
[1725485683110,1.18097,2456.7,2456.6,0.40708]
[1725485688211,4.37921235,2456.7,2456.6,0.40708]
[1725485689014,1.18097,2456.7,2456.6,0.40708]
[1725485689326,4.37921235,2456.7,2456.6,0.40708]
[1725485692220,1.18097,2456.7,2456.6,0.40708]
[1725485694326,4.38146198,2456.7,2456.6,0.40708]
[1725485696120,1.18097,2456.7,2456.6,0.40708]
[1725485697224,4.923349,2456.7,2456.6,0.40708]
[1725485699331,1.18097,2456.7,2456.6,0.40708]
[1725485700427,5.45257038,2456.7,2456.6,0.40708]
[1725485702925,1.18097,2456.7,2456.6,0.40708]
[1725485704220,4.92083533,2456.7,2456.6,0.40708]
[1725485704731,1.18097,2456.7,2456.6,0.40708]
[1725485705421,0.7739,2456.7,2456.6,0.40708]
[1725485705724,4.92084056,2456.7,2456.6,0.40708]
[1725485706030,1.18097,2456.7,2456.6,0.40708]
[1725485707126,4.92080962,2456.7,2456.6,0.40708]
[1725485707537,1.18097,2456.7,2456.6,0.40708]
[1725485708433,4.92075356,2456.7,2456.6,0.40708]
[1725485708928,1.18097,2456.7,2456.6,0.40708]
[1725485711634,0.7739,2456.7,2456.3,1.17]
[1725485711836,0.40709,2456.6,2456.5,0.40709]
[1725485712729,1.18098,2456.7,2456.3,1.17]
[1725485712937,0.40708,2456.6,2456.5,0.40709]
[1725485713531,1.18098,2456.7,2456.5,0.40709]
[1725485713930,0.40708,2456.6,2456.5,0.40709]
[1725485715538,1.18098,2456.7,2456.5,0.40709]
[1725485717531,4.92069435,2456.7,2456.5,0.40709]
[1725485720441,4.92069435,2456.7,2456.6,0.40708]
[1725485724440,4.51361435,2456.7,2456.6,0.40708]
[1725485724747,4.92068435,2456.7,2456.6,0.40708]
[1725485725649,4.51361435,2456.7,2456.6,0.40708]
[1725485726146,0.7739,2456.7,2456.6,0.40708]
[1725485727347,3.97847096,2456.7,2456.6,0.40708]
[1725485734442,0.7739,2456.7,2456.6,0.40708]
[1725485734643,3.97847096,2456.7,2456.6,0.40708]
[1725485736648,3.97737838,2456.7,2456.6,0.40708]
[1725485748162,4.38444838,2456.7,2456.6,0.40708]
[1725485752555,4.38492721,2456.7,2456.6,0.40708]
[1725485754153,14.04825721,2456.7,2456.2,1.06463881]
[1725485754466,1.01795,2456.1,2455.7,0.50222]
[1725485754759,6.4131127,2455.8,2455.7,0.40722]
[1725485755158,3.2078,2455.8,2455.7,0.40722]
[1725485757268,0.40721,2455.9,2455.7,0.40722]
[1725485757562,3.61501,2455.9,2455.7,0.40722]
[1725485757863,0.40721,2455.8,2455.7,0.40723]
[1725485758259,0.40721,2455.8,2455.6,1.57724]
[1725485758459,3.01994124,2455.7,2455.6,1.57724]
[1725485759255,3.42717124,2455.7,2455.6,1.57724]
[1725485759664,3.01994124,2455.7,2455.6,1.57724]
[1725485761360,0.3556,2455.7,2455.6,1.57724]
[1725485761665,3.01994124,2455.7,2455.6,1.57724]
[1725485762169,0.3556,2455.7,2455.6,1.57724]
[1725485763369,2.48358264,2455.7,2455.6,1.57724]
[1725485766166,0.3556,2455.7,2455.6,1.57724]
[1725485766562,2.48358264,2455.7,2455.6,1.57724]
[1725485766967,0.3556,2455.7,2455.6,1.57724]
[1725485767459,2.48358264,2455.7,2455.6,1.57724]
[1725485767660,0.3556,2455.7,2455.6,1.57724]
[1725485770368,0.3556,2455.7,2455.6,1.17]
[1725485770667,0.3556,2455.7,2455.6,1.57725]
[1725485770864,2.48358264,2455.7,2455.6,1.57725]
[1725485771061,0.3556,2455.7,2455.6,1.57725]
[1725485774767,0.7136,2455.7,2455.6,1.57725]
[1725485777469,1.12083,2455.7,2455.6,1.57725]
[1725485778375,4.32863,2455.7,2455.6,1.57725]
[1725485779476,4.32863,2455.7,2455.5,0.41336923]
[1725485779477,0.40725,2455.6,2455.5,0.41336923]
[1725485779674,0.3715,2455.6,2455.5,0.41336923]
[1725485779975,4.85155,2455.6,2455.5,0.41336923]
[1725485780173,4.85155,2455.6,2455.5,0.00610923]
[1725485780369,7.99766264,2455.6,2455.5,0.00610923]
[1725485780568,44.49766264,2455.6,2455.5,0.00610923]
[1725485781075,0.4073,2455.3,2455.1,1.5549]
[1725485781273,0.3769,2455.2,2455.1,1.5549]
[1725485781869,0.3769,2455.2,2455.1,1.96223]
[1725485784667,0.3769,2455.2,2455.1,0.79223]
[1725485786377,0.3769,2455.2,2455.1,0.40733]
[1725485786571,0.7544,2455.2,2455.1,0.40733]
[1725485788680,4.8272,2455.2,2455.0,0.76834]
[1725485788880,0.7544,2455.2,2455.0,0.76834]
[1725485789579,0.7544,2455.2,2455.1,0.40733]
[1725485790080,4.8272,2455.2,2455.1,0.40733]
[1725485792170,6.95518264,2455.2,2455.1,0.40733]
[1725485792579,4.8272,2455.2,2455.1,0.40733]
[1725485792879,6.95518264,2455.2,2455.1,0.40733]
[1725485793073,4.8272,2455.2,2455.1,0.40733]
[1725485793274,6.95518264,2455.2,2455.1,0.40733]
[1725485797083,2.88238264,2455.2,2455.1,0.40733]
[1725485797283,1.16171,2455.2,2455.1,0.40733]
[1725485797782,0.7544,2455.2,2455.1,0.40733]
[1725485798283,3.41874124,2455.2,2455.1,0.40733]
[1725485798873,3.04124124,2455.2,2455.1,0.40733]
[1725485800077,0.3769,2455.2,2455.1,0.40733]
[1725485801789,0.78421,2455.2,2455.1,0.40733]
[1725485802091,0.3769,2455.2,2455.0,0.361]
[1725485802281,0.3769,2455.2,2455.0,0.76834]
[1725485802584,0.78423,2455.2,2455.1,0.40733]
[1725485803073,0.78423,2455.2,2455.0,0.76833]
[1725485803686,0.78423,2455.2,2455.1,0.40733]
[1725485805780,3.99203,2455.2,2455.1,0.40733]
[1725485807786,0.78423,2455.2,2455.1,0.40733]
[1725485807987,3.99203,2455.2,2455.0,0.40733]
[1725485810083,0.78423,2455.2,2455.0,0.40733]
[1725485810387,3.99203,2455.2,2455.0,0.40733]
[1725485810777,3.99203,2455.2,2455.1,0.40733]
[1725485813585,0.78423,2455.2,2455.1,0.40733]
[1725485813779,3.99203,2455.2,2455.1,0.40733]
[1725485816984,7.1973427,2455.2,2455.1,0.40733]
[1725485817186,3.99203,2455.2,2455.1,0.40733]
[1725485817388,3.99203,2455.2,2455.0,0.40734]
[1725485818193,7.1973427,2455.2,2455.0,0.40734]
[1725485819088,7.1973427,2455.2,2455.0,0.40735]
[1725485819489,3.9895427,2455.2,2455.0,0.40735]
[1725485819689,7.1973427,2455.2,2455.0,0.40735]
[1725485820794,0.40733,2455.1,2455.0,0.40735]
[1725485820994,4.0028427,2455.1,2455.0,0.40735]
[1725485821498,0.79753,2455.1,2455.0,0.40735]
[1725485823292,7.2106427,2455.1,2455.0,0.40735]
[1725485823493,6.8033127,2455.1,2455.0,0.40735]
[1725485825400,6.4131127,2455.1,2455.0,0.40735]
[1725485826499,3.2078,2455.1,2455.0,0.40735]
[1725485826802,8.10376149,2455.2,2455.0,0.40735]
[1725485827493,3.73953149,2455.1,2455.0,0.40735]
[1725485827694,3.73953149,2455.1,2454.9,0.41346923]
[1725485827890,3.57722811,2455.0,2454.9,0.41346923]
[1725485828098,0.3715,2455.0,2454.9,0.41346923]
[1725485829100,3.57760247,2455.0,2454.9,0.41346923]
[1725485829602,0.40739,2454.8,2454.5,0.3775]
[1725485829899,6.82142819,2454.8,2454.6,0.4074]
[1725485830494,6.82142819,2454.8,2454.7,0.4074]
[1725485831996,6.41403819,2454.8,2454.7,0.4074]
[1725485833199,6.41403819,2454.8,2454.5,0.38360923]
[1725485833399,6.41403819,2454.8,2454.7,0.4074]
[1725485834897,6.41403819,2454.8,2454.5,0.38360923]
[1725485834898,6.41403819,2454.8,2454.6,0.4074]
[1725485837394,3.2078,2454.8,2454.6,0.4074]
[1725485837699,6.41403819,2454.8,2454.6,0.4074]
[1725485838100,3.2078,2454.8,2454.6,0.4074]
[1725485838305,3.20623819,2454.8,2454.6,0.4074]
[1725485838505,7.57620819,2454.9,2454.6,0.4074]
[1725485844008,3.20623819,2454.8,2454.6,0.4074]
[1725485844207,0.3689,2454.7,2454.6,0.4074]
[1725485853224,3.03741154,2454.7,2454.6,0.4074]
[1725485854220,0.3689,2454.7,2454.6,0.4074]
[1725485859414,6.41403819,2454.9,2454.5,1.40216923]
[1725485859616,3.59543819,2455.1,2454.8,1.01846]
[1725485859817,3.59543819,2455.1,2455.0,0.40735]
[1725485860022,6.41403819,2455.2,2455.1,0.40733]
[1725485860412,3.2078,2455.2,2455.1,0.40733]
[1725485862730,4.34273819,2455.3,2455.2,0.40731]
[1725485862731,7.55053819,2455.3,2455.2,0.40731]
[1725485863136,3.21234742,2455.4,2455.3,0.4073]
[1725485863327,2.673416,2455.4,2455.3,5.49835]
[1725485863632,2.13990257,2455.4,2455.3,11.49835]
[1725485863829,0.00610923,2455.4,2455.3,11.49835]
[1725485864436,0.00610923,2455.4,2455.3,15.7244]
[1725485864630,2.13379334,2455.6,2455.5,1.42543]
[1725485864826,2.13379334,2455.6,2455.5,6.66823]
[1725485865026,2.13240936,2455.7,2455.6,0.40725]
[1725485865527,2.13240936,2455.7,2455.6,5.49738]
[1725485866325,2.13240936,2455.8,2455.7,0.40723]
[1725485866732,2.13240936,2455.8,2455.7,4.47923]
[1725485868441,2.13851859,2455.9,2455.8,0.40721]
[1725485868748,2.13851859,2455.9,2455.8,4.47921]
[1725485870346,0.00610923,2455.9,2455.8,4.47921]
[1725485873749,0.00610923,2455.9,2455.8,10.47921]
[1725485874245,0.00610923,2455.9,2455.8,11.49725]
[1725485876750,0.00610923,2455.9,2455.8,12.66725]
[1725485879253,0.00610923,2455.9,2455.8,13.02605]
[1725485879653,0.00610923,2455.9,2455.8,13.41855]
[1725485881744,0.00610923,2455.9,2455.8,7.41855]
[1725485882054,0.00610923,2455.9,2455.8,13.41855]
[1725485882856,0.3559,2456.2,2456.1,0.40716]
[1725485888964,0.3559,2456.2,2456.1,4.47836]
[1725485889153,0.3559,2456.2,2456.1,0.40716]
[1725485889349,0.3559,2456.2,2456.1,6.66628]
[1725485893355,40.9728,2456.7,2456.5,0.40709]
[1725485893560,1.0835,2456.6,2456.5,0.40709]
[1725485906569,3.21590936,2456.6,2456.5,0.40709]
[1725485908466,0.357,2456.6,2456.5,0.40709]
[1725485910864,3.02430677,2456.6,2456.5,0.40709]
[1725485911368,0.357,2456.6,2456.5,0.40709]
[1725485912572,3.02430677,2456.6,2456.5,0.40709]
[1725485912775,0.357,2456.6,2456.5,0.40709]
[1725485913368,3.02430677,2456.6,2456.5,0.40709]
[1725485914275,0.357,2456.6,2456.5,0.40709]
[1725485914468,3.02430677,2456.6,2456.5,0.40709]
[1725485914774,0.357,2456.6,2456.5,0.40709]
[1725485914978,3.02430677,2456.6,2456.5,0.40709]
[1725485915168,0.357,2456.6,2456.5,0.40709]
[1725485915677,3.02430677,2456.6,2456.5,0.40709]
[1725485922870,2.66730677,2456.6,2456.5,2.59484]
[1725485923076,2.13232749,2456.6,2456.5,2.59485]
[1725485924587,2.13232749,2456.6,2456.5,5.80265]
[1725485925583,2.13232749,2456.6,2456.5,2.59485]
[1725485925777,2.13232749,2456.6,2456.5,5.80265]
[1725485926681,2.13232749,2456.6,2456.5,5.95217792]
[1725485929183,3.04110677,2456.8,2456.7,0.40707]
[1725485931678,3.04110677,2456.8,2456.7,3.61487]
[1725485932284,3.04110677,2456.8,2456.7,4.78487]
[1725485932887,3.04110677,2456.8,2456.7,1.57707]
[1725485933090,3.04110677,2456.8,2456.7,4.78487]
[1725485935477,0.3738,2456.8,2456.7,4.78487]
[1725485935891,3.04029349,2456.8,2456.7,4.78487]
[1725485936189,0.3738,2456.8,2456.7,4.78487]
[1725485937589,3.04044653,2456.8,2456.7,4.78487]
[1725485937787,0.3738,2456.8,2456.7,4.78487]
[1725485938292,3.04051012,2456.8,2456.7,4.78487]
[1725485938685,0.3738,2456.8,2456.7,4.78487]
[1725485939888,0.3738,2456.8,2456.7,1.57707]
[1725485940197,0.3738,2456.8,2456.7,4.78487]
[1725485940386,0.3738,2456.8,2456.7,1.57707]
[1725485943791,0.3738,2456.8,2456.7,0.40707]
[1725485944087,0.3738,2456.8,2456.6,0.40707]
[1725485944290,3.5816,2456.8,2456.6,0.40707]
[1725485944893,6.78783819,2456.8,2456.6,0.40707]
[1725485946195,6.78783819,2456.8,2456.7,0.40707]
[1725485946390,3.58003819,2456.8,2456.4,1.17]
[1725485946596,3.58003819,2456.8,2456.6,0.40707]
[1725485948293,3.58003819,2456.8,2456.7,0.40707]
[1725485949687,0.3738,2456.8,2456.7,0.40707]
[1725485964510,3.20623819,2456.9,2456.8,0.40705]
[1725485964694,4.09663149,2457.0,2456.9,0.40703]
[1725485964695,3.94593819,2457.0,2456.9,0.40703]
[1725485965198,0.7397,2457.0,2456.9,0.40703]
[1725485970095,0.3826,2457.0,2456.9,0.40703]
[1725485970695,0.3826,2457.0,2456.9,1.57703]
[1725485970908,3.203263,2457.0,2456.9,6.01353]
[1725485971110,3.203263,2457.1,2457.0,0.40702]
[1725485971294,3.203263,2457.1,2457.0,0.78122]
[1725485974107,3.577263,2457.2,2457.1,0.407]
[1725485974311,3.577263,2457.2,2457.1,1.577]
[1725485978503,0.374,2457.2,2457.1,1.577]
[1725485978705,0.374,2457.2,2457.1,1.9659]
[1725485982806,0.374,2457.2,2457.1,6.0355]
[1725485983113,3.04020085,2457.2,2457.1,6.0355]
[1725485983410,3.6005,2457.4,2457.2,0.40698]
[1725485983411,2.66620085,2457.3,2457.2,0.40698]
[1725485983610,2.66620085,2457.3,2457.2,1.57698]
[1725485983814,2.66620085,2457.3,2457.2,5.64658]
[1725485984003,2.66620085,2457.3,2457.2,1.96778]
[1725485985513,2.66620085,2457.3,2457.2,6.03738]
[1725485986419,0.7827,2457.4,2457.3,0.40697]
[1725485986420,3.44890085,2457.4,2457.3,0.40697]
[1725485987611,3.44890085,2457.4,2457.3,4.47657]
[1725485988006,3.44890085,2457.4,2457.3,0.40697]
[1725485989110,3.44890085,2457.4,2457.3,3.61477]
[1725485989311,0.7827,2457.4,2457.3,3.61477]
[1725485989519,2.9130521,2457.4,2457.3,3.61477]
[1725485990521,2.9130521,2457.4,2457.3,7.68437]
[1725485993018,2.9130521,2457.4,2457.3,4.47657]
[1725485993321,2.9130521,2457.4,2457.3,7.68437]
[1725485994124,2.9130521,2457.4,2457.3,3.61477]
[1725485994419,2.9130521,2457.4,2457.3,0.40697]
[1725486001928,2.9130521,2457.4,2457.3,4.47657]
[1725486003125,2.9130521,2457.4,2457.3,0.40697]
[1725486003621,0.7827,2457.4,2457.3,0.40697]
[1725486003820,2.9130521,2457.4,2457.3,0.40697]
[1725486004631,0.39,2457.4,2457.3,4.84897]
[1725486004931,0.39,2457.4,2457.3,5.23527]
[1725486007045,0.39,2457.4,2457.3,4.84897]
[1725486008923,0.7564,2457.4,2457.3,4.84897]
[1725486009427,2.8867521,2457.4,2457.3,4.84897]
[1725486013132,2.5203521,2457.4,2457.3,4.84897]
[1725486015731,2.5203521,2457.4,2457.3,8.05677]
[1725486016222,2.5203521,2457.4,2457.3,4.84897]
[1725486016422,0.39,2457.4,2457.3,8.05677]
[1725486017524,0.39,2457.4,2457.3,4.84897]
[1725486017725,0.39,2457.4,2457.3,8.05677]
[1725486018634,0.39,2457.4,2457.3,8.20370997]
[1725486019533,3.05620085,2457.4,2457.3,8.20370997]
[1725486019724,0.39,2457.4,2457.3,8.20370997]
[1725486020126,3.05620085,2457.4,2457.3,8.20370997]
[1725486020337,0.39,2457.4,2457.3,8.20370997]
[1725486020728,2.66620085,2457.4,2457.3,8.20370997]
[1725486020928,2.66620085,2457.5,2457.4,0.40695]
[1725486021221,0.3832,2457.6,2457.5,0.40693]
[1725486022134,0.3832,2457.6,2457.3,3.2078]
[1725486022326,3.610203,2457.5,2457.2,0.41308923]
[1725486022524,3.203263,2457.4,2457.2,0.41308923]
[1725486022827,0.7759,2457.3,2457.2,0.41308923]
[1725486023132,1.1342,2457.3,2457.2,0.41308923]
[1725486044641,1.1342,2457.3,2457.2,0.00610923]
[1725486044843,4.337463,2457.3,2457.2,0.41308923]
[1725486045652,1.1342,2457.3,2457.2,0.41308923]
[1725486045948,4.337463,2457.3,2457.2,0.41308923]
[1725486046150,4.337463,2457.3,2457.2,0.00610923]
[1725486047845,4.337463,2457.3,2457.2,0.41308923]
[1725486049854,1.1342,2457.3,2457.2,0.41308923]
[1725486057452,1.1342,2457.3,2457.2,0.00610923]
[1725486057855,4.337463,2457.3,2457.2,0.00610923]
[1725486058056,1.1342,2457.3,2457.2,0.00610923]
[1725486058353,1.1342,2457.3,2457.2,0.41308923]
[1725486059854,1.1342,2457.3,2457.2,0.00610923]
[1725486060159,1.1342,2457.3,2457.2,0.41308923]
[1725486060356,1.1342,2457.3,2457.2,0.00610923]
[1725486061552,4.337463,2457.3,2457.2,0.41308923]
[1725486062365,6.411063,2457.4,2457.3,0.40697]
[1725486062661,3.2078,2457.4,2457.3,0.40697]
[1725486063854,3.565863,2457.5,2457.4,0.40695]
[1725486066755,0.3626,2457.5,2457.4,0.40695]
[1725486067353,3.565863,2457.5,2457.4,0.40695]
[1725486068158,0.3626,2457.5,2457.4,0.40695]
[1725486068555,3.203263,2457.6,2457.4,0.40695]
[1725486068756,0.377,2457.6,2457.5,0.3757]
[1725486071164,3.57624815,2457.6,2457.5,0.78263]
[1725486071856,3.57624815,2457.6,2457.5,0.3757]
[1725486073956,3.19924815,2457.6,2457.5,0.3757]
[1725486074157,3.19924815,2457.6,2457.5,1.1228]
[1725486074361,3.19924815,2457.6,2457.5,0.7668]
[1725486074757,3.19924815,2457.6,2457.4,1.57694]
[1725486074758,7.26804815,2457.6,2457.4,1.57694]
[1725486074959,3.19924815,2457.6,2457.4,1.57694]
[1725486075165,0.3544,2457.5,2457.4,1.57694]
[1725486079169,0.7253,2457.5,2457.4,1.57694]
[1725486084070,0.7253,2457.5,2457.4,0.40694]
[1725486092870,3.19924815,2457.6,2457.5,0.40693]
[1725486093076,3.58324815,2457.7,2457.6,0.40692]
[1725486093576,7.65204815,2457.7,2457.6,0.40692]
[1725486096183,3.58324815,2457.7,2457.6,0.40692]
[1725486096677,3.58324815,2457.7,2457.6,1.57692]
[1725486096882,6.40704815,2457.8,2457.7,0.4069]
[1725486097094,6.40704815,2457.8,2457.7,1.1768]
[1725486097378,3.2078,2457.8,2457.7,1.5372]
[1725486097573,3.2078,2457.8,2457.7,5.606]
[1725486097770,3.2078,2457.8,2457.7,6.62326]
[1725486099874,3.29424815,2458.0,2457.9,0.40687]
[1725486100171,6.40704815,2458.0,2457.9,1.57687]
[1725486100977,3.2078,2458.0,2457.9,1.57687]
[1725486101479,2.66230601,2458.0,2457.9,6.66284]
[1725486101685,6.50204815,2458.3,2457.9,6.66284]
[1725486101686,0.99320601,2458.2,2458.1,0.40683]
[1725486101885,2.13015413,2458.3,2458.1,2.18708]
[1725486102184,2.13015413,2458.4,2458.1,6.25508]
[1725486102376,2.13015413,2458.4,2458.3,1.17]
[1725486102775,2.13015413,2458.4,2458.3,5.6448]
[1725486103379,2.13015413,2458.5,2458.4,0.40678]
[1725486103591,1.50372,2458.8,2458.4,1.57678]
[1725486103771,2.12650859,2458.5,2458.4,1.57678]
[1725486105576,2.12650859,2458.6,2458.4,1.57678]
[1725486105883,2.12650859,2458.6,2458.5,1.17]
[1725486106373,2.12650859,2458.7,2458.5,1.17]
[1725486109371,3.22350859,2458.8,2458.5,1.17]
[1725486109586,2.12650859,2458.7,2458.5,1.17]
[1725486110375,3.22350859,2458.8,2458.5,1.17]
[1725486111682,3.22350859,2458.8,2458.4,0.40678]
[1725486111683,3.22350859,2458.8,2458.7,1.17]
[1725486112683,6.43130859,2458.8,2458.7,1.17]
[1725486113086,4.3048,2458.8,2458.7,1.17]
[1725486115285,8.372,2458.8,2458.7,1.17]
[1725486115592,4.3048,2458.8,2458.7,1.17]
[1725486120891,4.71152,2458.8,2458.7,1.17]
[1725486126388,1.50372,2458.8,2458.7,1.17]
[1725486126600,4.71152,2458.8,2458.7,1.17]
[1725486127294,0.40673,2458.7,2458.5,0.00610923]
[1725486127501,0.40673,2458.7,2458.5,1.58286923]
[1725486128696,3.2078,2458.6,2458.5,1.58286923]
[1725486132202,5.32990312,2458.6,2458.5,1.58286923]
[1725486132411,5.73665312,2458.6,2458.5,1.58286923]
[1725486133096,2.52885312,2458.6,2458.5,1.58286923]
[1725486133505,5.73665312,2458.6,2458.5,1.58286923]
[1725486134300,5.73665312,2458.6,2458.5,1.17610923]
[1725486134503,5.73665312,2458.6,2458.5,1.58287923]
[1725486134705,3.61455,2458.6,2458.5,1.17610923]
[1725486135297,6.26531129,2458.6,2458.5,1.17610923]
[1725486137300,6.26531129,2458.6,2458.5,0.00610923]
[1725486137603,6.26531129,2458.6,2458.5,1.17610923]
[1725486138111,3.61455,2458.6,2458.5,1.17610923]
[1725486138301,6.27268585,2458.6,2458.5,1.17610923]
[1725486138999,3.61455,2458.6,2458.5,1.17610923]
[1725486140107,4.63143,2458.6,2458.5,1.17610923]
[1725486142201,7.83067815,2458.6,2458.5,1.17610923]
[1725486145109,4.63143,2458.6,2458.5,1.17610923]
[1725486145504,7.82924644,2458.6,2458.5,1.17610923]
[1725486146514,6.81236644,2458.6,2458.5,1.17610923]
[1725486146810,3.61455,2458.6,2458.5,1.17610923]
[1725486147208,7.35408149,2458.6,2458.5,1.17610923]
[1725486149812,7.35408149,2458.6,2458.5,0.00610923]
[1725486151309,4.14628149,2458.6,2458.5,0.00610923]
[1725486151514,7.35408149,2458.6,2458.5,0.00610923]
[1725486157515,14.69863,2458.6,2458.5,0.00610923]
[1725486157716,18.56563027,2458.6,2458.2,1.57681]
[1725486158019,6.40574506,2458.3,2458.2,1.57681]
[1725486158519,7.15094506,2458.3,2458.2,1.17]
[1725486158818,7.55774506,2458.3,2458.2,1.17]
[1725486159014,4.3598,2458.3,2458.2,1.17]
[1725486159320,7.55759534,2458.3,2458.2,1.17]
[1725486159711,1.152,2458.3,2458.2,1.17]
[1725486159913,7.55762335,2458.3,2458.2,1.17]
[1725486160118,4.3598,2458.3,2458.2,1.17]
[1725486160322,7.55765957,2458.3,2458.2,1.17]
[1725486163917,7.15085957,2458.3,2458.2,1.17]
[1725486164328,7.15085957,2458.3,2458.2,1.57682]
[1725486164627,7.15085957,2458.3,2458.2,1.17]
[1725486164825,7.55765957,2458.3,2458.2,1.17]
[1725486165024,4.3598,2458.3,2458.2,1.17]
[1725486165326,7.55963701,2458.3,2458.2,1.17]
[1725486165527,4.3598,2458.3,2458.2,1.17]
[1725486166523,7.55950091,2458.3,2458.2,1.17]
[1725486166921,4.3598,2458.3,2458.2,1.17]
[1725486167529,7.55942594,2458.3,2458.2,1.17]
[1725486167926,4.3598,2458.3,2458.2,1.17]
[1725486168620,4.3598,2458.3,2458.2,1.57682]
[1725486171123,4.3598,2458.3,2458.2,1.17]
[1725486171623,4.3598,2458.3,2458.0,0.00610923]
[1725486171830,4.3598,2458.3,2458.1,1.57682]
[1725486171831,3.57879008,2458.2,2458.1,1.57682]
[1725486174829,3.57879008,2458.2,2458.0,0.00610923]
[1725486174830,0.40683,2458.1,2458.0,0.00610923]
[1725486175126,4.1377659,2458.1,2458.0,0.00610923]
[1725486183038,0.40683,2458.1,2458.0,0.00610923]
[1725486183235,4.1377659,2458.1,2458.0,0.00610923]
[1725486183437,0.40683,2458.1,2458.0,0.00610923]
[1725486187334,3.61463,2458.1,2458.0,0.00610923]
[1725486189940,6.80899812,2458.1,2458.0,0.00610923]
[1725486190339,3.61463,2458.1,2458.0,0.00610923]
[1725486192740,0.40683,2458.1,2458.0,0.00610923]
[1725486193034,3.61463,2458.1,2458.0,0.00610923]
[1725486193745,0.40683,2458.1,2458.0,0.00610923]
[1725486193945,3.61463,2458.1,2458.0,0.00610923]
[1725486194140,0.40683,2458.1,2458.0,0.00610923]
[1725486194340,3.61463,2458.1,2458.0,0.00610923]
[1725486200054,7.3455659,2458.1,2458.0,0.00610923]
[1725486200252,3.61463,2458.1,2458.0,0.00610923]
[1725486200647,7.3455659,2458.1,2458.0,0.00610923]
[1725486202252,4.1377659,2458.1,2458.0,0.00610923]
[1725486202555,7.3455659,2458.1,2458.0,0.00610923]
[1725486210267,4.1377659,2458.1,2458.0,0.00610923]
[1725486210467,7.3455659,2458.1,2458.0,0.00610923]
[1725486212259,3.61463,2458.1,2458.0,0.00610923]
[1725486215966,7.88838027,2458.1,2458.0,0.00610923]
[1725486217260,4.68058027,2458.1,2458.0,0.00610923]
[1725486217458,7.88838027,2458.1,2458.0,0.00610923]
[1725486221756,3.61463,2458.1,2458.0,0.00610923]
[1725486222373,0.40683,2458.1,2458.0,0.00610923]
[1725486222667,3.61463,2458.1,2458.0,0.00610923]
[1725486226363,0.40688,2457.9,2457.8,0.40687]
[1725486226569,4.14477937,2457.9,2457.8,0.40687]